[Event "ESP-ch Teams Primera 2022"]
[Site "Sanxenxo Pontevedra"]
[Date "2022.09.20"]
[Round "4.15"]
[White "Andersen, Mads"]
[Black "Suarez Uriel, Adrian"]
[Result "1-0"]
[ECO "B90"]
[WhiteElo "2597"]
[BlackElo "2375"]
[Annotator "TA"]
[PlyCount "107"]
[EventDate "2022.09.17"]
[EventType "team-tourn"]
[EventCountry "ESP"]
[SourceTitle "playchess.com"]
[Source "ChessBase"]
[SourceQuality "1"]
[TimeControl "5400+30"]

{[%evp 18,107,33,20,31,29,25,22,25,20,34,35,35,45,41,47,72,52,62,60,110,115,122,138,149,163,147,90,90,33,47,30,70,81,77,91,93,56,67,72,125,120,107,75,98,95,447,399,382,377,456,500,494,456,495,343,318,0,433,439,908,251,250,233,237,230,354,317,320,307,693,687,905,864,1011,968,12845,598,544,0,681,29950,5691,29956,29949,29952,12658,8993,29960,29962,4618,4614]} 1. e4 {[%emt 0:00:09]} c5 {[%emt 0:00:47]} 2. Nf3 {[%emt 0:00:10]} d6 {[%emt 0:00:05]} 3. d4 {[%emt 0:00:08]} cxd4 {[%emt 0:00:05]} 4. Nxd4 {[%emt 0:00:07]} Nf6 {[%emt 0:00:02]} 5. Nc3 {[%emt 0:00:11]} a6 {[%emt 0:00:04]} 6. f3 {[%emt 0:00:12]} e5 {[%emt 0:00:12]} 7. Nb3 {[%emt 0:00:10]} Be6 {[%emt 0:00:04]} 8. Be3 {[%emt 0:00:10]} Be7 {[%emt 0:00:04]} 9. Qd2 {[%emt 0:00:12]} h5 {[%emt 0:00:05]} 10. Be2 {[%emt 0:00:38] CPLX 2.3} Nbd7 {[%emt 0:03:04] BESTDEEP. B90: Sicilian Najdorf: Unusual White 6th moves, 6 Be3 Ng4 and 6 Be3 e5.} 11. Nd5 {[%emt 0:00:59] BESTDEEP} Nxd5 {[%emt 0:05:47] 11...Bxd5 might become the main line.} 12. exd5 {[%emt 0:00:04] RECAPT} Bf5 {[%emt 0:00:03] EASY. The position is equal.} 13. O-O {[%emt 0:00:25] CPLX 2.1 5 (Nb3-a5) (=1)} Rc8 {[%emt 0:00:45] BESTDEEP} 14. Rac1 {[%emt 0:04:37] BESTDEEP} O-O {[%emt 0:04:23]} 15. Na5 {[%emt 0:03:57] BESTDEEP} Qc7 {[%emt 0:17:48] CPLX 2.4} 16. c4 {[%emt 0:01:32][%cal Bc2c4,Bc4c5,Bc5c6][%mdl 32] CPLX 2.4} Bg6 {[%emt 0:06:41] [#] CPLX 2.5 25 (Nd7-f6) (=4)} 17. Rfd1 $146 {[%emt 0:09:31][%cal Oc4c5] BESTDEEP} ({Predecessor:} 17. b4 Rfe8 18. Rfd1 b6 19. Nc6 Bf8 20. a4 Nb8 21. c5 dxc5 22. Nxb8 Rxb8 23. d6 {1-0 (49) Mohammad Fahad,R (2263)-Neelash,S (2373) Chittagong 2018}) 17... Qb8 {[%emt 0:24:35] CPLX 2.5 10 (e5-e4) (=4)} 18. b4 {[%emt 0:02:51][%cal Oc4c5] BESTDEEP} f5 {[%emt 0:03:04] CPLX 2.3 50 (Be7-d8) (=9)} (18... Bd8 $1 $14) 19. c5 $16 {[%emt 0:10:40] [#] Hoping for c6. BESTDEEP} f4 {[%emt 0:00:06] CPLX 2.4 7 (Nd7-f6) (=9)} 20. Bf2 {[%emt 0:00:12] EASY} Nf6 {[%emt 0:00:03] DEEPSTRONG} 21. c6 {[%emt 0:15:49] CPLX 2.5 0 (Na5-c4) (=0)} b5 {[%emt 0:00:06] BESTDEEP} 22. Bd3 {[%emt 0:00:24] CPLX 2.7 57 (Na5-b7) (=5)} (22. Nb7 $142) 22... Bf7 {[%emt 0:01:16] CPLX 3.1} 23. Be4 {[%emt 0:01:06] White is much more active. CPLX 2.9 57 (Bd3-b1) (=9)} (23. Bb1 $16) 23... Nxe4 $14 {[%emt 0:06:56] CPLX 3.0} 24. fxe4 {[%emt 0:00:03] RECAPT} Rc7 {[%emt 0:00:35] CPLX 2.7 40 (g7-g5) (=9)} 25. Qe2 {[%emt 0:04:33] BESTDEEP} g5 {[%emt 0:00:47] CPLX 2.7 0 (h5-h4) (=8)} 26. a4 $36 {[%emt 0:05:01][%mdl 2048] White is really pushing. BESTDEEP} Bg6 {[%emt 0:00:08] BESTDEEP} (26... bxa4 $2 27. Qxa6 Qxb4 28. Nc4 $16) 27. axb5 {[%emt 0:05:25] CPLX 2.9 37 (Na5-b7) (=9)} axb5 {[%emt 0:00:07] RECAPT} 28. Nb7 {[%emt 0:04:23] CPLX 2.7 0 (Rd1-e1) (=8)} Rxb7 {[%emt 0:00:03] CPLX 2.9 53 (Qb8-c8) (=10)} (28... Qc8 $142) 29. cxb7 $16 {[%emt 0:00:12] RECAPT} Qxb7 {[%emt 0:00:01] RECAPT} 30. Ra1 {[%emt 0:02:16] Strongly threatening Ra7. BESTDEEP} Rf7 {[%emt 0:04:08] CPLX 2.8 23 (Qb7-c8) (=10)} 31. Rdc1 {[%emt 0:09:33] aiming for Ra7. CPLX 2.8 3 (Qe2-c2) (=7)} f3 $2 {[%emt 0:11:58][%mdl 8192] RELBLUND 352 (Be7-f8) (=25)} (31... Bf8 $16) 32. gxf3 $18 {[%emt 0:02:29] EASY} Qd7 {[%emt 0:00:01] CPLX 2.9 0 (Qb7-b8) (=24)} 33. Ra8+ {[%emt 0:05:05] CPLX 3.2} Kg7 {[%emt 0:00:20] CPLX 3.4 79 (Be7-f8) (=27)} 34. Ra7 {[%emt 0:05:33] BESTDEEP} Qh3 {[%emt 0:00:04] CPLX 3.6} 35. Rcc7 {[%emt 0:00:15] CPLX 4.2} Kf8 {[%emt 0:00:10] CPLX 4.4 39 (Be7-d8) (=26)} 36. Ra8+ {[%emt 0:00:08] CPLX 5.9 152 (Rc7-b7) (=12)} Kg7 {[%emt 0:00:01] EASY} 37. Raa7 {[%emt 0:00:07] CPLX 5.7 318 (Bf2-e1) (=22)} Kf8 {[%emt 0:00:01] BESTDEEP=>BLUNDERREACT} 38. Be3 {[%emt 0:01:50] CPLX 5.9 0 (Rc7-b7) (=22)} Rxf3 {[%emt 0:03:21] EVAL 400 (h5-h4) (=37)} (38... h4 $142 39. Qg2 (39. Qxb5 Qxf3 40. Rc8+ Kg7) 39... Qxg2+ 40. Kxg2 Bh5) 39. Rxe7 $2 {[%emt 0:00:46] RELBLUND 400 (Ra7-a8) (=34)} (39. Ra8+ Kf7 40. Bxg5 Qg4+ 41. Qg2 Qxg2+ 42. Kxg2) 39... Rxe3 {[%emt 0:00:18] [#] EASY} 40. Qf1+ {[%emt 0:01:39] BESTDEEP} ({Weaker is} 40. Qf2+ Rf3 41. Qg2 (41. Qe2 $2 Rf4 $19) 41... Qxg2+ 42. Kxg2 Bxe4 $16) 40... Qxf1+ {[%emt 0:00:02] EASY} 41. Kxf1 {[%emt 0:00:07] Really sharp! LEGAL} Rxe4 {[%mdl 4096] Endgame KRR-KRB. CPLX 3.0 124 (Bg6xe4) (=38)} (41... Bxe4 $142 42. Rf7+ Kg8) 42. Re6 {[%emt 0:01:49][%csl LRd6,LRg6] CPLX 3.1 37 (Re7-d7) (=32)} Rf4+ {[%emt 0:00:23] EASY} 43. Ke1 {[%emt 0:00:36] CPLX 3.0} Bf7 {[%emt 0:04:24] CPLX 3.3 386 (Rf4-f7) (=47)} (43... Rf7) 44. Rxd6 {[%emt 0:00:11] EASY} Kg7 {[%emt 0:00:22] EVAL 218 (Kf8-g8) (=52)} 45. Re6 {[%emt 0:02:59] EVAL} Re4+ {[%emt 0:02:12] BEVAL 147 (Kg7-f8) (=54)} 46. Kf2 {[%emt 0:00:17] EVAL} Kg8 {[%emt 0:03:31] BEVAL 400 (Kg7-f8) (=64)} 47. Ra8+ {[%emt 0:00:10] RELBLUND 400 (Re6-e7) (=39)} (47. Ree7 $142 Rf4+ 48. Ke3 Bxd5 49. Rxe5 Rf3+ 50. Kd4) 47... Kg7 {[%emt 0:00:05] CPLX 2.8} 48. Ra7 {[%emt 0:00:05] d6 is the strong threat. CPLX 3.2 400 (Re6-e7) (=48)} Kg8 $1 {[%emt 0:00:03] EASY} 49. Ree7 {[%emt 0:01:08] RELBLUND} Rf4+ {[%emt 0:00:20] BEVAL} 50. Ke3 {[%emt 0:00:13] RELBLUND} Bxd5 {[%emt 0:00:17] EASY} 51. Rxe5 {[%emt 0:00:31] CPLX 4.1} Rf3+ {[%emt 0:00:31] BEVAL} 52. Ke2 {[%emt 0:00:36] BEVAL} Bc6 {[%emt 0:00:40] MISSDEEP-Rf3-f7 400 (Rf3-f7) (=64)} 53. Rxg5+ {[%emt 0:00:14] DEEPSTRONG} Kf8 {[%emt 0:00:04] BEVAL} 54. Rxh5 {[%emt 0:00:33] Weighted Error Value: White=0.65/Black=0.57} 1-0

[Event "ESP-ch Teams Primera 2022"]
[Site "Sanxenxo Pontevedra"]
[Date "2022.09.20"]
[Round "4.16"]
[White "Quispe Arteaga, Gabriel"]
[Black "Sousa, Andre Ventura"]
[Result "0-1"]
[ECO "D35"]
[WhiteElo "2373"]
[BlackElo "2449"]
[Annotator "TA"]
[PlyCount "124"]
[EventDate "2022.09.17"]
[EventType "team-tourn"]
[EventCountry "ESP"]
[SourceTitle "playchess.com"]
[Source "ChessBase"]
[SourceQuality "1"]
[TimeControl "5400+30"]

{[%evp 18,124,20,17,22,23,17,24,15,0,25,16,12,0,0,0,0,0,7,-34,-34,-40,-41,-41,-42,-42,-38,-38,-32,-38,-32,-40,-44,-55,-55,-55,-50,-54,-54,-54,-43,-42,-23,-32,-32,-136,-136,-136,-136,-136,-136,-116,-106,-169,-82,-189,-189,-297,-85,-85,-8,-8,-8,-8,-8,-8,-8,-12,-8,-136,-165,-12804,-164,-12834,-12838,-123,-12843,-29938,-12625,-12548,-12796,-29944,-29944,-29945,0,-12844,-29947,-29945,-29945,-29952,-29954,-29945,-12850,-29969,-29970,-29970,-29972,-29971,-29972,-29971,-29972,-29975,-29976,-29976,-29977,-29977,-29978,-29978,-29979]} 1. c4 {[%emt 0:00:03]} e6 {[%emt 0:00:11]} 2. Nc3 {[%emt 0:00:06]} d5 {[%emt 0:00:05]} 3. d4 {[%emt 0:00:04]} Nf6 {[%emt 0:00:04]} 4. cxd5 {[%emt 0:00:08]} exd5 {[%emt 0:00:05]} 5. Bg5 {[%emt 0:00:05]} c6 {[%emt 0:00:04]} 6. e3 {[%emt 0:00:25]} h6 {[%emt 0:00:07]} 7. Bh4 {[%emt 0:00:14]} Be7 {[%emt 0:00:09]} 8. Bd3 {[%emt 0:00:16]} O-O {[%emt 0:00:41]} 9. Nge2 {[%emt 0:00:31]} Nbd7 {[%emt 0:01:34]} 10. O-O {[%emt 0:00:57] CPLX 2.3 3 (Qd1-c2) (=3)} Ne4 {[%emt 0:07:26] BESTDEEP was the old line (10...Re8). D35: Queen's Gambit Declined: Exchange Variation.} 11. Bxe7 {[%emt 0:11:36] EASY} Qxe7 {[%emt 0:00:05] RECAPT} 12. Bxe4 {[%emt 0:24:55] CPLX 2.4} dxe4 {[%emt 0:00:06] RECAPT. White has an edge.} 13. d5 {[%emt 0:01:08] [#] CPLX 2.0 15 (Qd1-b3) (=5)} c5 $146 {[%emt 0:11:56] CPLX 2.0 25 (f7-f5) (=6)} ({Predecessor:} 13... Nf6 14. dxc6 bxc6 15. Ng3 Ba6 16. Re1 Rab8 17. Qa4 Bd3 18. b3 c5 19. Rac1 Rfc8 {1-0 (48) Vo,T (2352)-Eryshkanova,A (2187) St Petersburg 2018}) 14. Ng3 {[%emt 0:30:46] CPLX 2.0 9 (d5-d6) (=5)} Nf6 {[%emt 0:04:47] CPLX 2.1} 15. d6 {[%emt 0:07:09] CPLX 2.2 12 (Qd1-a4) (=7)} Qe5 {[%emt 0:01:28] CPLX 2.7} 16. Qc2 {[%emt 0:00:52] CPLX 2.8} Re8 {[%emt 0:06:40] CPLX 2.9} 17. Nb5 {[%emt 0:00:04] aiming for Nc7. CPLX 2.8} Rd8 {[%emt 0:00:07] CPLX 2.9 7 (Ra8-b8) (=4)} 18. Nc3 {[%emt 0:00:13][%cal Rg3e4] CPLX 2.9 41 (Rf1-d1) (=9)} b6 {[%emt 0:18:45] Hoping for ...Ba6. BESTDEEP} 19. Ncxe4 {[%emt 0:00:29] EASY} Nxe4 {[%emt 0:02:00] RECAPT} 20. Qxe4 {[%emt 0:00:04] RECAPT} ({Don't play} 20. Nxe4 Bf5 21. f3 Bxe4 22. Qxe4 Qxe4 23. fxe4 Rxd6 $17) 20... Qxe4 {[%emt 0:00:04] RECAPT} 21. Nxe4 {[%emt 0:00:03] RECAPT} Bb7 {[%emt 0:00:06][%mdl 64] Deflection. EASY} 22. Nc3 {[%emt 0:00:03] CPLX 2.5} Rxd6 {[%emt 0:00:04] EASY} 23. Rfd1 {[%emt 0:00:04] Inhibits Rd2. CPLX 2.0} Rad8 {[%emt 0:00:06] EASY} 24. Rxd6 {[%emt 0:00:11] CPLX 2.0 8 (f2-f3) (=6)} Rxd6 {[%emt 0:00:05] RECAPT} 25. Rd1 {[%emt 0:00:02] Against Rd2. CPLX 2.0 11 (Ra1-e1) (=6)} Rxd1+ {[%emt 0:00:06] EASY} 26. Nxd1 $15 {[%emt 0:00:03][%mdl 4096] Endgame KB-KN. LEGAL} f5 {[%emt 0:08:47] CPLX 2.0} 27. Nc3 {[%emt 0:00:04] CPLX 2.0 4 (f2-f3) (=6)} Kf7 {[%emt 0:01:38] CPLX 2.0 0 (Bb7-c6) (=2)} 28. f3 {[%emt 0:00:03] CPLX 2.0 0 (Nc3-b5) (=5)} Ke6 {[%emt 0:00:19] CPLX 2.0 11 (Bb7-c6) (=2)} 29. Kf2 {[%emt 0:00:04] CPLX 2.0} g5 {[%emt 0:01:02] CPLX 2.0 19 (Bb7-c6) (=3)} 30. Kg3 {[%emt 0:00:39] CPLX 2.0 9 (a2-a3) (=5)} Bc6 {[%emt 0:01:32] CPLX 2.0} 31. h4 {[%emt 0:01:22] RELBLUND 104 (a2-a3) (=10)} (31. a3 $15) 31... b5 $1 $17 {[%emt 0:01:19][%cal Bb6b5,Bb5b4][%mdl 32] DEEPSTRONG=>BLUNDERREACT} 32. hxg5 {[%emt 0:00:04] CPLX 2.0 0 (Nc3-e2) (=9)} hxg5 {[%emt 0:00:04] RECAPT} 33. Kf2 {[%emt 0:02:14] BESTDEEP} b4 {[%emt 0:04:34] CPLX 2.0} 34. Ne2 {[%emt 0:00:03] EASY} a5 {[%emt 0:02:06] CPLX 2.0} 35. Ke1 {[%emt 0:00:40] MISSDEEP-Ne2-g3 63 (Ne2-g3) (=11)} (35. Ng3 $17) 35... Ke5 {[%emt 0:04:12] CPLX 2.0 87 (g5-g4) (=6)} (35... g4 $1 $19 {[%cal Rg4f3]} 36. Kf2 Ke5) 36. Kd2 {[%emt 0:02:34] CPLX 2.0 107 (f3-f4) (=14)} (36. f4+ $17 gxf4 37. Nxf4) 36... g4 $19 {[%emt 0:05:07] CPLX 2.0=>BLUNDERREACT} 37. Nc1 {[%emt 0:05:33] CPLX 2.0 108 (Ne2-g1) (=18)} (37. Ng1 $142) 37... c4 $2 {[%emt 0:06:36] RELBLUND 212 (g4xf3) (=13)} (37... gxf3 $19 {has better winning chances.} 38. gxf3 Bxf3) 38. a3 $17 {[%emt 0:03:22] DEEPSTRONG=>BLUNDERREACT} Bd5 {[%emt 0:05:24] Black is more active. RELBLUND 77 (b4xa3) (=15)} (38... bxa3 $17 39. bxa3 gxf3 40. gxf3 Bxf3) 39. axb4 $1 $11 {[%emt 0:00:07] CPLX 2.1} axb4 {[%emt 0:00:04] Threatening ...Kd6. CPLX 2.3 0 (g4xf3) (=15)} 40. Ke2 $1 {[%emt 0:02:45] CPLX 2.0} Kd6 {[%emt 0:03:44] CPLX 2.0 0 (Ke5-f6) (=14)} 41. Kf2 {[%emt 0:00:42] CPLX 2.0} Kc5 {[%emt 0:01:03] White must now prevent ...c3. MISS-c4-c3 0 (c4-c3) (=14)} 42. Ne2 {[%emt 0:03:25] Against c3. CPLX 2.0} c3 {[%emt 0:01:09] CPLX 2.0 4 (Bd5-f7) (=13)} 43. Nxc3 {[%emt 0:00:09] Black keeps a firm grip on the game. MISS-b2xc3 128 (b2xc3) (=18)} bxc3 $17 {[%emt 0:00:04] RECAPT} 44. bxc3 $11 {[%emt 0:00:03] KB-KP. RECAPT} Kd6 $1 {[%emt 0:03:06] RELBLUND} 45. Kg3 {[%emt 0:00:21] RELBLUND} gxf3 {[%emt 0:00:25] CPLX 2.0} 46. gxf3 $19 {[%emt 0:00:03] KB-K3P. RECAPT} Ke5 $1 {[%emt 0:00:04] RELBLUND} 47. Kf2 {[%emt 0:00:12] MISSDEEP-Kg3-g2 400 (Kg3-g2) (=27)} Bc4 {[%emt 0:00:13] CPLX 2.0 400 (Bd5-b3) (=22)} (47... Bb3 $142 48. Kg3 Be6 49. Kg2 Kf6 50. Kg3 Kg5 51. Kh2 Kh4 52. Kg2 Bd7 53. Kh2 Bc6 54. Kg2 Bb7 55. e4 f4 56. Kh2 Bc8 57. Kg2 Be6 58. Kh2 Bh3 59. c4 Bd7 60. Kg2 Kg5 61. Kf2 Kf6 62. Ke2 Ba4 63. Ke1 Ke5 64. Kf1 Kd4 65. Kf2 Kxc4 66. Ke2 Kc3 67. Kf1 Kd3 68. Kf2 Bd7 69. Kf1 Ke3 70. Kg2 Ke2 71. Kg1 Kxf3 72. e5 Be6 73. Kf1 Ke3 74. Kg2 f3+ 75. Kg3 f2 76. Kh4 f1=Q 77. Kg5 Qf7 78. Kh6 Bf5 79. Kg5 Qg6+ 80. Kh4 Qg4#) 48. Kg3 {[%emt 0:00:05] CPLX 2.0} Bb5 {[%emt 0:00:26] CPLX 2.0} 49. Kh4 {[%emt 0:01:09] RELBLUND} Bc6 {[%emt 0:00:04] CPLX 2.0 0 (Bb5-e2) (=21)} 50. Kg3 {[%emt 0:00:02] RELBLUND} Bd5 {[%emt 0:00:35] CPLX 2.0 400 (Bc6-a8) (=30)} (50... Ba8 $142 51. c4 Bc6 52. c5 Ba8 53. Kg2 Kf6 54. Kf2 Kg6 55. Ke2 Kf7 56. Kf2 Kg6 57. Ke2 Bb7 58. Kf2 Bc6 59. Ke2 Kf6 60. Kf2 Kg6 61. Ke2 Kf7 62. Kf2 Kg6) 51. Kf2 $1 {[%emt 0:00:04] DEEPSTRONG} Bf7 {[%emt 0:00:43] CPLX 2.0 0 (Bd5-a2) (=30)} (51... Ba2 $19 52. Kg2 Bb3) 52. Kg3 {[%emt 0:00:08] RELBLUND 0 (Kf2-g2) (=24)} Be6 {[%emt 0:00:05] CPLX 2.0 0 (Bf7-b3) (=29)} 53. Kh4 {[%emt 0:00:34] RELBLUND 7 (Kg3-h2) (=23)} Kf6 {[%emt 0:00:13] CPLX 2.0} 54. Kg3 {[%emt 0:01:20] [#] RELBLUND} Kg5 $1 {[%emt 0:00:05] ( -> ...Bd7). CPLX 2.0} 55. Kf2 {[%emt 0:00:12] [#] RELBLUND 400 (Kg3-h2) (=31)} Kh4 $1 {[%emt 0:00:17] CPLX 2.0. Black mates.} 56. Kg2 {[%emt 0:00:01] BESTDEEP} Bc4 {[%emt 0:00:19] CPLX 2.0 0 (Be6-c8) (=26)} 57. Kh2 {[%emt 0:00:07] BESTDEEP} Ba6 {[%emt 0:00:38] CPLX 2.0 0 (Bc4-b5) (=26)} 58. Kg2 {[%emt 0:00:05] RELBLUND} Bb7 {[%emt 0:00:20] BESTDEEP} 59. c4 {[%emt 0:00:05] RELBLUND 3 (e3-e4) (=29)} Ba8 {[%emt 0:00:02] BESTDEEP} 60. c5 {[%emt 0:00:16] RELBLUND 0 (Kg2-f2) (=28)} Bc6 {[%emt 0:00:04] CPLX 2.1 0 (Ba8-b7) (=24)} 61. Kf2 {[%emt 0:01:32] RELBLUND 0 (e3-e4) (=28)} Kh3 {[%emt 0:00:07] BESTDEEP} 62. f4 {[%emt 0:03:27] BESTDEEP} Be4 {[%emt 0:00:29] Weighted Error Value: White=0.32/Black=0.28 (precise)} 0-1

[Event "ESP-ch Teams Primera 2022"]
[Site "Sanxenxo Pontevedra"]
[Date "2022.09.20"]
[Round "4.17"]
[White "Gomez Dieguez, David"]
[Black "Ruiz Buendia, Miguel"]
[Result "1-0"]
[ECO "B35"]
[WhiteElo "2332"]
[BlackElo "2293"]
[Annotator "ChessBase"]
[PlyCount "83"]
[EventDate "2022.09.17"]
[EventType "team-tourn"]
[EventCountry "ESP"]
[SourceTitle "playchess.com"]
[Source "ChessBase"]
[SourceQuality "1"]
[TimeControl "5400+30"]

1. e4 {[%emt 0:00:02]} c5 {[%emt 0:00:12]} 2. Ne2 {[%emt 0:00:12]} Nc6 {[%emt 0:03:33]} 3. Nbc3 {[%emt 0:01:07]} g6 {[%emt 0:00:29]} 4. d4 {[%emt 0:00:10]} cxd4 {[%emt 0:00:06]} 5. Nxd4 {[%emt 0:00:03]} Bg7 {[%emt 0:00:38]} 6. Be3 {[%emt 0:00:05]} Nf6 {[%emt 0:00:27]} 7. Bc4 {[%emt 0:00:14]} O-O {[%emt 0:00:24]} 8. Bb3 {[%emt 0:00:05]} Re8 {[%emt 0:00:19]} 9. f3 {[%emt 0:00:57]} e6 {[%emt 0:00:10]} 10. f4 {[%emt 0:00:03]} Nd5 {[%emt 0:00:07]} 11. exd5 {[%emt 0:26:39]} exd5 {[%emt 0:00:13]} 12. Kf2 {[%emt 0:01:15]} Rxe3 {[%emt 0:00:06]} 13. Kxe3 {[%emt 0:00:04]} Bxd4+ {[%emt 0:00:05]} 14. Kd2 {[%emt 0:03:52]} Bxc3+ {[%emt 0:00:16]} 15. bxc3 {[%emt 0:00:16]} d4 {[%emt 0:00:19]} 16. cxd4 {[%emt 0:11:21]} Nxd4 {[%emt 0:00:06]} 17. c3 {[%emt 0:03:26]} Nxb3+ {[%emt 0:00:05]} 18. axb3 {[%emt 0:04:41]} d5 {[%emt 0:00:07]} 19. Qg1 {[%emt 0:04:50]} Bf5 {[%emt 0:19:12]} 20. Rxa7 {[%emt 0:06:57]} Be4 {[%emt 0:21:00]} 21. Qd4 {[%emt 0:06:24]} Qb8 {[%emt 0:19:37]} 22. Rxa8 {[%emt 0:00:57]} Qxa8 {[%emt 0:00:09]} 23. Qa4 {[%emt 0:00:06]} Qb8 {[%emt 0:00:19]} 24. Rf1 {[%emt 0:04:17]} Bxg2 {[%emt 0:01:59]} 25. Ra1 {[%emt 0:01:27]} Kg7 {[%emt 0:02:48]} 26. Qd4+ {[%emt 0:00:22]} f6 {[%emt 0:00:42]} 27. Ra7 {[%emt 0:01:15]} Be4 {[%emt 0:00:41]} 28. Ke3 {[%emt 0:02:39]} Qc8 {[%emt 0:00:34]} 29. Kd2 {[%emt 0:06:37]} Qb8 {[%emt 0:06:21]} 30. Qf2 {[%emt 0:01:14]} d4 {[%emt 0:01:19]} 31. Ra4 {[%emt 0:00:58]} dxc3+ {[%emt 0:00:41]} 32. Kxc3 {[%emt 0:00:04]} Bc6 {[%emt 0:01:01]} 33. Rd4 {[%emt 0:00:09]} Qc8 {[%emt 0:02:18]} 34. Kb2 {[%emt 0:00:09]} Qh3 {[%emt 0:00:47]} 35. Rd8 {[%emt 0:02:06]} Qf5 {[%emt 0:02:00]} 36. Qd4 {[%emt 0:01:06]} Qh3 {[%emt 0:01:12]} 37. Qd6 {[%emt 0:03:17]} Qxh2+ {[%emt 0:00:43]} 38. Ka3 {[%emt 0:00:04]} Kh6 {[%emt 0:00:28]} 39. Qf8+ {[%emt 0:00:48]} Kh5 {[%emt 0:00:08]} 40. Qxf6 {[%emt 0:00:03]} Qh4 {[%emt 0:02:26]} 41. Qe5+ {[%emt 0:00:41]} Kh6 {[%emt 0:02:10]} 42. Rg8 {[%emt 0:00:42]} 1-0